[Event "Titled Tuesday Blitz February 28 Early 2023"]
[White "Koridze, Lile"]
[Black "Ingebretsen, Jens E"]
[WhiteFideId "13612514"]
[BlackFideId "1522965"]
[WhiteElo "2047"]
[BlackElo "2213"]
[Result "1-0"]
[Round "11"]
[TimeControl "180+2"]
[Date "2023.02.28"]
[WhiteClock "0:00:25"]
[BlackClock "0:00:24"]

1. d4 {[%clk 0:03:00]}  Nf6 {[%clk 0:02:58]} 2. c4 {[%clk 0:03:01]}  e6 {[%clk 0:02:58]} 3. Nf3 {[%clk 0:02:58]}  d5 {[%clk 0:02:58]} 4. g3 {[%clk 0:02:58]}  c5 {[%clk 0:02:58]} 5. cxd5 {[%clk 0:02:56]}  exd5 {[%clk 0:02:58]} 6. Bg2 {[%clk 0:02:57]}  Nc6 {[%clk 0:02:59]} 7. O-O {[%clk 0:02:57]}  cxd4 {[%clk 0:02:59]} 8. Nxd4 {[%clk 0:02:56]}  Be7 {[%clk 0:02:59]} 9. Nc3 {[%clk 0:02:55]}  O-O {[%clk 0:02:59]} 10. b3 {[%clk 0:02:54]}  Bg4 {[%clk 0:02:50]} 11. Bb2 {[%clk 0:02:53]}  Rc8 {[%clk 0:02:47]} 12. h3 {[%clk 0:02:53]}  Bh5 {[%clk 0:02:42]} 13. g4 {[%clk 0:02:53]}  Bg6 {[%clk 0:02:42]} 14. Qd2 {[%clk 0:02:54]}  Nxd4 {[%clk 0:02:41]} 15. Qxd4 {[%clk 0:02:53]}  Bc5 {[%clk 0:02:42]} 16. Qd2 {[%clk 0:02:54]}  d4 {[%clk 0:02:41]} 17. Nb5 {[%clk 0:02:52]}  Qb6 {[%clk 0:02:33]} 18. Nxd4 {[%clk 0:02:52]}  Rfd8 {[%clk 0:02:33]} 19. e3 {[%clk 0:02:52]}  Be4 {[%clk 0:02:31]} 20. Rfd1 {[%clk 0:02:50]}  Bxg2 {[%clk 0:02:31]} 21. Kxg2 {[%clk 0:02:51]}  h5 {[%clk 0:02:30]} 22. Qe2 {[%clk 0:02:51]}  h4 {[%clk 0:02:24]} 23. Nf5 {[%clk 0:02:51]}  Ne4 {[%clk 0:02:12]} 24. Nxg7 {[%clk 0:02:24]}  Ng5 {[%clk 0:02:03]} 25. Nf5 {[%clk 0:02:24]}  Qc6+ {[%clk 0:02:01]} 26. f3 {[%clk 0:02:23]}  Bf8 {[%clk 0:02:00]} 27. Rac1 {[%clk 0:02:15]}  Qb6 {[%clk 0:01:49]} 28. Ba1 {[%clk 0:01:53]}  Rxc1 {[%clk 0:01:44]} 29. Rxc1 {[%clk 0:01:53]}  Bb4 {[%clk 0:01:23]} 30. Rd1 {[%clk 0:01:48]}  Rc8 {[%clk 0:01:24]} 31. Qb2 {[%clk 0:01:43]}  Bc3 {[%clk 0:01:21]} 32. Ne7+ {[%clk 0:01:43]}  Kf8 {[%clk 0:01:08]} 33. Nxc8 {[%clk 0:01:43]}  Qc6 {[%clk 0:00:41]} 34. Qf2 {[%clk 0:01:39]}  Bxa1 {[%clk 0:00:37]} 35. Rxa1 {[%clk 0:01:34]}  Qxc8 {[%clk 0:00:38]} 36. Qxh4 {[%clk 0:01:29]}  Qc2+ {[%clk 0:00:38]} 37. Qf2 {[%clk 0:01:29]}  Qd3 {[%clk 0:00:37]} 38. Rc1 {[%clk 0:01:25]}  Ne6 {[%clk 0:00:37]} 39. Rc2 {[%clk 0:01:09]}  a5 {[%clk 0:00:31]} 40. Qd2 {[%clk 0:01:08]}  Qb5 {[%clk 0:00:30]} 41. Rc8+ {[%clk 0:01:05]}  Kg7 {[%clk 0:00:30]} 42. Qc3+ {[%clk 0:01:04]}  f6 {[%clk 0:00:29]} 43. Qd2 {[%clk 0:01:01]}  b6 {[%clk 0:00:24]} 44. Rc4 {[%clk 0:00:51]}  Nc5 {[%clk 0:00:21]} 45. Qd4 {[%clk 0:00:45]}  a4 {[%clk 0:00:20]} 46. b4 {[%clk 0:00:35]}  Ne6 {[%clk 0:00:19]} 47. Qe4 {[%clk 0:00:31]}  Ng5 {[%clk 0:00:19]} 48. Qc6 {[%clk 0:00:26]}  Qe5 {[%clk 0:00:17]} 49. Qc7+ {[%clk 0:00:25]}  Kg6 {[%clk 0:00:15]} 50. Qxe5 {[%clk 0:00:23]}  fxe5 {[%clk 0:00:15]} 51. Rc6+ {[%clk 0:00:24]}  Kf7 {[%clk 0:00:16]} 52. Rxb6 {[%clk 0:00:25]}  Ne6 {[%clk 0:00:17]} 53. Rxe6 {[%clk 0:00:23]}  Kxe6 {[%clk 0:00:17]} 54. h4 {[%clk 0:00:24]}  Kd5 {[%clk 0:00:17]} 55. h5 {[%clk 0:00:24]}  Kc4 {[%clk 0:00:18]} 56. h6 {[%clk 0:00:25]}  Kxb4 {[%clk 0:00:18]} 57. h7 {[%clk 0:00:25]}  Ka3 {[%clk 0:00:19]} 58. h8=Q {[%clk 0:00:25]}  Kxa2 {[%clk 0:00:20]} 59. Qxe5 {[%clk 0:00:26]}  a3 {[%clk 0:00:20]} 60. g5 {[%clk 0:00:26]}  Kb3 {[%clk 0:00:21]} 61. g6 {[%clk 0:00:26]}  Ka2 {[%clk 0:00:22]} 62. g7 {[%clk 0:00:26]}  Kb1 {[%clk 0:00:23]} 63. g8=Q {[%clk 0:00:26]}  a2 {[%clk 0:00:24]} 64. Qb3+ {[%clk 0:00:26]}  Kc1 {[%clk 0:00:24]} 65. Qeb2# {[%clk 0:00:25]} 1-0


[Site "https://www.chess.com"]

[Event "Titled Tuesday Blitz February 28 Early 2023"]
[White "Martic, Ivan"]
[Black "Zemlyanskii, Ivan"]
[WhiteFideId "929301"]
[BlackFideId "24249971"]
[WhiteElo "2360"]
[BlackElo "2233"]
[Result "1-0"]
[Round "11"]
[TimeControl "180+2"]
[Date "2023.02.28"]
[WhiteClock "0:00:07"]
[BlackClock "0:00:08"]

1. e4 {[%clk 0:03:00]}  Nc6 {[%clk 0:03:00]} 2. Nf3 {[%clk 0:03:00]}  d5 {[%clk 0:03:00]} 3. exd5 {[%clk 0:03:00]}  Qxd5 {[%clk 0:03:01]} 4. Nc3 {[%clk 0:03:00]}  Qd6 {[%clk 0:03:01]} 5. Bb5 {[%clk 0:02:58]}  Nf6 {[%clk 0:02:58]} 6. d4 {[%clk 0:02:47]}  a6 {[%clk 0:02:51]} 7. Ba4 {[%clk 0:02:40]}  e6 {[%clk 0:02:42]} 8. O-O {[%clk 0:02:36]}  Be7 {[%clk 0:02:42]} 9. Ne5 {[%clk 0:02:20]}  b5 {[%clk 0:02:05]} 10. Nxb5 {[%clk 0:02:09]}  axb5 {[%clk 0:01:48]} 11. Bxb5 {[%clk 0:02:09]}  Bd7 {[%clk 0:01:47]} 12. Qf3 {[%clk 0:01:39]}  Ra6 {[%clk 0:00:47]} 13. Nxd7 {[%clk 0:01:29]}  Nxd7 {[%clk 0:00:44]} 14. Bxa6 {[%clk 0:01:26]}  Nxd4 {[%clk 0:00:45]} 15. Qa8+ {[%clk 0:01:19]}  Bd8 {[%clk 0:00:33]} 16. Be3 {[%clk 0:01:06]}  Nb6 {[%clk 0:00:28]} 17. Qb7 {[%clk 0:01:01]}  O-O {[%clk 0:00:28]} 18. Rad1 {[%clk 0:00:53]}  Bf6 {[%clk 0:00:24]} 19. Bxd4 {[%clk 0:00:46]}  Bxd4 {[%clk 0:00:25]} 20. c3 {[%clk 0:00:47]}  Bxf2+ {[%clk 0:00:25]} 21. Kxf2 {[%clk 0:00:42]}  Qc5+ {[%clk 0:00:26]} 22. Ke2 {[%clk 0:00:31]}  Nd5 {[%clk 0:00:26]} 23. Rxd5 {[%clk 0:00:27]}  exd5 {[%clk 0:00:26]} 24. Bd3 {[%clk 0:00:22]}  Qd6 {[%clk 0:00:22]} 25. g3 {[%clk 0:00:20]}  g6 {[%clk 0:00:21]} 26. Kd2 {[%clk 0:00:18]}  d4 {[%clk 0:00:19]} 27. c4 {[%clk 0:00:16]}  Re8 {[%clk 0:00:16]} 28. Qd5 {[%clk 0:00:14]}  Qe7 {[%clk 0:00:16]} 29. Kc2 {[%clk 0:00:14]}  Rd8 {[%clk 0:00:15]} 30. Qf3 {[%clk 0:00:13]}  f5 {[%clk 0:00:15]} 31. Rf2 {[%clk 0:00:13]}  Qb4 {[%clk 0:00:13]} 32. Qe2 {[%clk 0:00:12]}  Qa4+ {[%clk 0:00:09]} 33. Kb1 {[%clk 0:00:12]}  Ra8 {[%clk 0:00:09]} 34. a3 {[%clk 0:00:11]}  Qb3 {[%clk 0:00:08]} 35. Qc2 {[%clk 0:00:11]}  Qb6 {[%clk 0:00:06]} 36. c5 {[%clk 0:00:10]}  Qf6 {[%clk 0:00:04]} 37. Qc4+ {[%clk 0:00:10]}  Kg7 {[%clk 0:00:04]} 38. Re2 {[%clk 0:00:10]}  g5 {[%clk 0:00:03]} 39. Qd5 {[%clk 0:00:09]}  Rf8 {[%clk 0:00:03]} 40. Qd7+ {[%clk 0:00:08]}  Rf7 {[%clk 0:00:04]} 41. Qe6 {[%clk 0:00:09]}  f4 {[%clk 0:00:04]} 42. Qxf6+ {[%clk 0:00:09]}  Kxf6 {[%clk 0:00:03]} 43. gxf4 {[%clk 0:00:10]}  gxf4 {[%clk 0:00:04]} 44. Kc2 {[%clk 0:00:09]}  Kg5 {[%clk 0:00:04]} 45. Be4 {[%clk 0:00:08]}  f3 {[%clk 0:00:03]} 46. Rf2 {[%clk 0:00:09]}  Kg4 {[%clk 0:00:03]} 47. Kd3 {[%clk 0:00:08]}  h5 {[%clk 0:00:02]} 48. b4 {[%clk 0:00:08]}  h4 {[%clk 0:00:02]} 49. b5 {[%clk 0:00:08]}  Re7 {[%clk 0:00:02]} 50. b6 {[%clk 0:00:08]}  cxb6 {[%clk 0:00:02]} 51. cxb6 {[%clk 0:00:09]}  Re5 {[%clk 0:00:03]} 52. b7 {[%clk 0:00:09]}  Rb5 {[%clk 0:00:04]} 53. Bxf3+ {[%clk 0:00:06]}  Kg5 {[%clk 0:00:04]} 54. Bc6 {[%clk 0:00:06]}  Rb3+ {[%clk 0:00:03]} 55. Kxd4 {[%clk 0:00:06]}  Rb1 {[%clk 0:00:03]} 56. Rf8 {[%clk 0:00:05]}  Rd1+ {[%clk 0:00:03]} 57. Kc5 {[%clk 0:00:05]}  Rc1+ {[%clk 0:00:01]} 58. Kb6 {[%clk 0:00:06]}  Rb1+ {[%clk 0:00:02]} 59. Bb5 {[%clk 0:00:06]}  Kg4 {[%clk 0:00:02]} 60. b8=Q {[%clk 0:00:05]}  Kh3 {[%clk 0:00:02]} 61. Qc8+ {[%clk 0:00:06]}  Kg2 {[%clk 0:00:02]} 62. Qc6+ {[%clk 0:00:05]}  Kxh2 {[%clk 0:00:03]} 63. Qc2+ {[%clk 0:00:05]}  Kg3 {[%clk 0:00:04]} 64. Qxb1 {[%clk 0:00:05]}  h3 {[%clk 0:00:04]} 65. Qb3+ {[%clk 0:00:05]}  Kg4 {[%clk 0:00:04]} 66. Rg8+ {[%clk 0:00:05]}  Kf5 {[%clk 0:00:04]} 67. Qxh3+ {[%clk 0:00:05]}  Ke5 {[%clk 0:00:05]} 68. Qh5+ {[%clk 0:00:06]}  Kd6 {[%clk 0:00:06]} 69. Rg6+ {[%clk 0:00:06]}  Ke7 {[%clk 0:00:07]} 70. Qh7+ {[%clk 0:00:06]}  Kf8 {[%clk 0:00:08]} 71. Rg8# {[%clk 0:00:07]} 1-0


[Site "https://www.chess.com"]

[Event "Titled Tuesday Blitz February 28 Early 2023"]
[White "Ljukin, Sergei"]
[Black "Maximov, Dmitry"]
[WhiteFideId "14102200"]
[BlackFideId "14105659"]
[WhiteElo "2312"]
[BlackElo "2494"]
[Result "0-1"]
[Round "11"]
[TimeControl "180+2"]
[Date "2023.02.28"]
[WhiteClock "0:00:03"]
[BlackClock "0:00:14"]

1. e4 {[%clk 0:02:56]}  c5 {[%clk 0:03:00]} 2. Nf3 {[%clk 0:02:55]}  d6 {[%clk 0:03:00]} 3. d4 {[%clk 0:02:55]}  cxd4 {[%clk 0:03:00]} 4. Nxd4 {[%clk 0:02:55]}  Nf6 {[%clk 0:03:00]} 5. Nc3 {[%clk 0:02:55]}  a6 {[%clk 0:03:01]} 6. Bg5 {[%clk 0:02:55]}  Nbd7 {[%clk 0:02:59]} 7. f4 {[%clk 0:02:55]}  Qc7 {[%clk 0:02:59]} 8. Qf3 {[%clk 0:02:55]}  h6 {[%clk 0:02:52]} 9. Bxf6 {[%clk 0:02:55]}  Nxf6 {[%clk 0:02:49]} 10. f5 {[%clk 0:02:55]}  Bd7 {[%clk 0:02:43]} 11. O-O-O {[%clk 0:02:54]}  h5 {[%clk 0:02:40]} 12. g3 {[%clk 0:02:45]}  Rc8 {[%clk 0:02:29]} 13. Bd3 {[%clk 0:02:35]}  Qb6 {[%clk 0:02:24]} 14. Nb3 {[%clk 0:02:27]}  Rxc3 {[%clk 0:02:23]} 15. bxc3 {[%clk 0:02:26]}  a5 {[%clk 0:02:22]} 16. Nd4 {[%clk 0:02:22]}  g6 {[%clk 0:02:20]} 17. Kd2 {[%clk 0:02:15]}  Bh6+ {[%clk 0:02:14]} 18. Ke2 {[%clk 0:02:14]}  Ng4 {[%clk 0:02:05]} 19. h3 {[%clk 0:02:00]}  Ne5 {[%clk 0:02:05]} 20. Qf2 {[%clk 0:01:54]}  Qc5 {[%clk 0:01:45]} 21. Nf3 {[%clk 0:01:03]}  Qxc3 {[%clk 0:01:24]} 22. Qd4 {[%clk 0:01:01]}  Qc7 {[%clk 0:01:14]} 23. Rb1 {[%clk 0:00:36]}  O-O {[%clk 0:00:51]} 24. Qb6 {[%clk 0:00:33]}  Qxb6 {[%clk 0:00:32]} 25. Rxb6 {[%clk 0:00:32]}  Nxf3 {[%clk 0:00:26]} 26. Kxf3 {[%clk 0:00:32]}  Bc6 {[%clk 0:00:26]} 27. Ke2 {[%clk 0:00:30]}  gxf5 {[%clk 0:00:26]} 28. Rf1 {[%clk 0:00:16]}  fxe4 {[%clk 0:00:26]} 29. Bb5 {[%clk 0:00:17]}  Bd5 {[%clk 0:00:26]} 30. c4 {[%clk 0:00:16]}  Be6 {[%clk 0:00:26]} 31. Rxb7 {[%clk 0:00:16]}  Bxh3 {[%clk 0:00:22]} 32. Rb1 {[%clk 0:00:11]}  Bg4+ {[%clk 0:00:23]} 33. Ke1 {[%clk 0:00:11]}  Bg5 {[%clk 0:00:20]} 34. Bc6 {[%clk 0:00:11]}  e3 {[%clk 0:00:20]} 35. Be4 {[%clk 0:00:09]}  Kg7 {[%clk 0:00:19]} 36. Bd3 {[%clk 0:00:09]}  Rc8 {[%clk 0:00:19]} 37. R1b5 {[%clk 0:00:08]}  e5 {[%clk 0:00:18]} 38. Rxa5 {[%clk 0:00:08]}  h4 {[%clk 0:00:17]} 39. gxh4 {[%clk 0:00:05]}  Bxh4+ {[%clk 0:00:18]} 40. Kf1 {[%clk 0:00:05]}  Bf2 {[%clk 0:00:17]} 41. Raa7 {[%clk 0:00:04]}  Be6 {[%clk 0:00:17]} 42. Be2 {[%clk 0:00:03]}  Bh3# {[%clk 0:00:14]} 0-1


[Site "https://www.chess.com"]

[Event "Titled Tuesday Blitz February 28 Early 2023"]
[White "Yurasova, Daria"]
[Black "Schroeder, Jan-Christian"]
[WhiteFideId "34146919"]
[BlackFideId "24662259"]
[WhiteElo "2134"]
[BlackElo "2556"]
[Result "0-1"]
[Round "11"]
[TimeControl "180+2"]
[Date "2023.02.28"]
[WhiteClock "0:00:22"]
[BlackClock "0:01:40"]

1. d4 {[%clk 0:03:00]}  Nf6 {[%clk 0:02:56]} 2. Bg5 {[%clk 0:02:56]}  g6 {[%clk 0:02:52]} 3. Bxf6 {[%clk 0:02:56]}  exf6 {[%clk 0:02:53]} 4. e3 {[%clk 0:02:57]}  f5 {[%clk 0:02:51]} 5. g3 {[%clk 0:02:58]}  h5 {[%clk 0:02:51]} 6. Bg2 {[%clk 0:02:58]}  h4 {[%clk 0:02:51]} 7. Ne2 {[%clk 0:02:58]}  h3 {[%clk 0:02:49]} 8. Bf1 {[%clk 0:02:57]}  g5 {[%clk 0:02:47]} 9. Nbc3 {[%clk 0:02:55]}  d5 {[%clk 0:02:46]} 10. Qd2 {[%clk 0:02:55]}  c6 {[%clk 0:02:45]} 11. O-O-O {[%clk 0:02:55]}  Be6 {[%clk 0:02:44]} 12. Ng1 {[%clk 0:02:49]}  g4 {[%clk 0:02:42]} 13. Nge2 {[%clk 0:02:49]}  Nd7 {[%clk 0:02:41]} 14. Nf4 {[%clk 0:02:49]}  b5 {[%clk 0:02:41]} 15. f3 {[%clk 0:02:43]}  gxf3 {[%clk 0:02:33]} 16. Qf2 {[%clk 0:02:43]}  Nb6 {[%clk 0:02:12]} 17. Qxf3 {[%clk 0:02:42]}  Nc4 {[%clk 0:02:12]} 18. Bd3 {[%clk 0:02:34]}  Qa5 {[%clk 0:02:08]} 19. Nxe6 {[%clk 0:02:13]}  fxe6 {[%clk 0:01:57]} 20. Bxc4 {[%clk 0:01:33]}  bxc4 {[%clk 0:01:56]} 21. g4 {[%clk 0:01:32]}  Rb8 {[%clk 0:01:51]} 22. gxf5 {[%clk 0:01:18]}  Rxb2 {[%clk 0:01:42]} 23. fxe6 {[%clk 0:01:17]}  Rh7 {[%clk 0:01:42]} 24. e4 {[%clk 0:00:30]}  Qa3 {[%clk 0:01:40]} 25. Kd2 {[%clk 0:00:29]}  Bh6+ {[%clk 0:01:41]} 26. Ke1 {[%clk 0:00:25]}  Rxc2 {[%clk 0:01:41]} 27. Ne2 {[%clk 0:00:22]}  Qxf3 {[%clk 0:01:40]} 0-1


[Site "https://www.chess.com"]

[Event "Titled Tuesday Blitz February 28 Early 2023"]
[White "Nguyen Hong Nhung"]
[Black "Peng, Li Min"]
[WhiteFideId "12412201"]
[BlackFideId "14112620"]
[WhiteElo "1904"]
[BlackElo "2436"]
[Result "1/2-1/2"]
[Round "11"]
[TimeControl "180+2"]
[Date "2023.02.28"]
[WhiteClock "0:01:31"]
[BlackClock "0:02:07"]

1. e4 {[%clk 0:03:00]}  Nc6 {[%clk 0:03:00]} 2. d4 {[%clk 0:03:00]}  d5 {[%clk 0:03:00]} 3. e5 {[%clk 0:03:00]}  f6 {[%clk 0:03:01]} 4. f4 {[%clk 0:02:57]}  Bf5 {[%clk 0:03:01]} 5. Nf3 {[%clk 0:02:51]}  e6 {[%clk 0:03:02]} 6. Be3 {[%clk 0:02:47]}  Nh6 {[%clk 0:03:02]} 7. h3 {[%clk 0:02:45]}  Be7 {[%clk 0:02:56]} 8. g4 {[%clk 0:02:44]}  Be4 {[%clk 0:02:56]} 9. Bg2 {[%clk 0:02:43]}  fxe5 {[%clk 0:02:57]} 10. fxe5 {[%clk 0:02:41]}  Bxf3 {[%clk 0:02:36]} 11. Qxf3 {[%clk 0:02:38]}  Bh4+ {[%clk 0:02:35]} 12. Kd2 {[%clk 0:02:21]}  Rf8 {[%clk 0:02:33]} 13. Qe2 {[%clk 0:02:21]}  Qe7 {[%clk 0:02:25]} 14. Nc3 {[%clk 0:02:18]}  Qb4 {[%clk 0:02:22]} 15. a3 {[%clk 0:02:10]}  Qb6 {[%clk 0:02:22]} 16. Qb5 {[%clk 0:01:55]}  Qxb5 {[%clk 0:02:12]} 17. Nxb5 {[%clk 0:01:56]}  Kd7 {[%clk 0:02:12]} 18. Rhf1 {[%clk 0:01:54]}  Nf7 {[%clk 0:02:12]} 19. Nc3 {[%clk 0:01:40]}  Ng5 {[%clk 0:02:10]} 20. Kd3 {[%clk 0:01:36]}  a6 {[%clk 0:02:08]} 21. Na4 {[%clk 0:01:34]}  b6 {[%clk 0:02:07]} 22. Rad1 {[%clk 0:01:31]} 1/2-1/2


[Site "https://www.chess.com"]

[Event "Titled Tuesday Blitz February 28 Early 2023"]
[White "Aydincelebi, Kagan"]
[Black "Balla, Tamas-Kristof"]
[WhiteFideId "6361102"]
[BlackFideId "1208497"]
[WhiteElo "2180"]
[BlackElo "2334"]
[Result "1-0"]
[Round "11"]
[TimeControl "180+2"]
[Date "2023.02.28"]
[WhiteClock "0:00:23"]
[BlackClock "0:00:06"]

1. e4 {[%clk 0:02:59]}  c5 {[%clk 0:03:00]} 2. Nf3 {[%clk 0:02:59]}  Nc6 {[%clk 0:03:00]} 3. d4 {[%clk 0:02:57]}  cxd4 {[%clk 0:03:00]} 4. Nxd4 {[%clk 0:02:58]}  e5 {[%clk 0:03:01]} 5. Nxc6 {[%clk 0:02:56]}  bxc6 {[%clk 0:03:01]} 6. Nc3 {[%clk 0:02:57]}  Bb4 {[%clk 0:03:00]} 7. Bc4 {[%clk 0:02:56]}  h6 {[%clk 0:02:51]} 8. O-O {[%clk 0:02:56]}  Nf6 {[%clk 0:02:52]} 9. Qd3 {[%clk 0:02:50]}  O-O {[%clk 0:02:47]} 10. f4 {[%clk 0:02:50]}  Qe7 {[%clk 0:02:39]} 11. fxe5 {[%clk 0:02:41]}  Qxe5 {[%clk 0:02:36]} 12. Rf5 {[%clk 0:02:41]}  Qe7 {[%clk 0:02:22]} 13. e5 {[%clk 0:02:41]}  Ng4 {[%clk 0:02:16]} 14. Ne4 {[%clk 0:02:31]}  Bc5+ {[%clk 0:01:57]} 15. Kh1 {[%clk 0:02:24]}  Qh4 {[%clk 0:01:51]} 16. Bf4 {[%clk 0:01:52]}  d5 {[%clk 0:01:35]} 17. Nxc5 {[%clk 0:01:48]}  dxc4 {[%clk 0:01:20]} 18. Qxc4 {[%clk 0:01:45]}  Bxf5 {[%clk 0:01:16]} 19. Rf1 {[%clk 0:01:45]}  Rad8 {[%clk 0:01:05]} 20. Nb7 {[%clk 0:01:42]}  Rd1 {[%clk 0:00:56]} 21. Kg1 {[%clk 0:01:13]}  Rxf1+ {[%clk 0:00:53]} 22. Qxf1 {[%clk 0:01:14]}  Be6 {[%clk 0:00:49]} 23. h3 {[%clk 0:01:12]}  Qe7 {[%clk 0:00:27]} 24. Nd6 {[%clk 0:01:10]}  Nxe5 {[%clk 0:00:22]} 25. Bxe5 {[%clk 0:01:11]}  Bd5 {[%clk 0:00:22]} 26. Qf4 {[%clk 0:01:03]}  f6 {[%clk 0:00:20]} 27. Bc3 {[%clk 0:01:01]}  Rd8 {[%clk 0:00:18]} 28. Bb4 {[%clk 0:00:54]}  Qe5 {[%clk 0:00:18]} 29. Qxe5 {[%clk 0:00:38]}  fxe5 {[%clk 0:00:19]} 30. Nf5 {[%clk 0:00:37]}  Be4 {[%clk 0:00:16]} 31. Ne3 {[%clk 0:00:37]}  Bd5 {[%clk 0:00:13]} 32. b3 {[%clk 0:00:27]}  e4 {[%clk 0:00:13]} 33. Bc5 {[%clk 0:00:27]}  a6 {[%clk 0:00:13]} 34. Kf2 {[%clk 0:00:27]}  Kh7 {[%clk 0:00:14]} 35. Kg3 {[%clk 0:00:27]}  Rd7 {[%clk 0:00:14]} 36. Kf4 {[%clk 0:00:28]}  Rf7+ {[%clk 0:00:14]} 37. Ke5 {[%clk 0:00:28]}  Rf2 {[%clk 0:00:14]} 38. c4 {[%clk 0:00:23]}  Bf7 {[%clk 0:00:13]} 39. Kxe4 {[%clk 0:00:23]}  Rxa2 {[%clk 0:00:12]} 40. Ke5 {[%clk 0:00:22]}  Rb2 {[%clk 0:00:12]} 41. b4 {[%clk 0:00:23]}  Rb3 {[%clk 0:00:11]} 42. Kd6 {[%clk 0:00:22]}  Be8 {[%clk 0:00:10]} 43. Nf5 {[%clk 0:00:20]}  Rb2 {[%clk 0:00:10]} 44. g4 {[%clk 0:00:20]}  Rh2 {[%clk 0:00:10]} 45. Ke7 {[%clk 0:00:21]}  Bg6 {[%clk 0:00:10]} 46. Nd4 {[%clk 0:00:21]}  Rxh3 {[%clk 0:00:10]} 47. Nxc6 {[%clk 0:00:22]}  Rh4 {[%clk 0:00:10]} 48. Ne5 {[%clk 0:00:23]}  Be4 {[%clk 0:00:08]} 49. Bd6 {[%clk 0:00:23]}  h5 {[%clk 0:00:07]} 50. g5 {[%clk 0:00:20]}  Rh1 {[%clk 0:00:03]} 51. c5 {[%clk 0:00:21]}  Rc1 {[%clk 0:00:03]} 52. Kd7 {[%clk 0:00:21]}  h4 {[%clk 0:00:03]} 53. c6 {[%clk 0:00:22]}  h3 {[%clk 0:00:03]} 54. c7 {[%clk 0:00:21]}  h2 {[%clk 0:00:03]} 55. g6+ {[%clk 0:00:20]}  Kh6 {[%clk 0:00:02]} 56. Ng4+ {[%clk 0:00:20]}  Kh5 {[%clk 0:00:03]} 57. Nxh2 {[%clk 0:00:20]}  Bf5+ {[%clk 0:00:03]} 58. Kd8 {[%clk 0:00:20]}  Rc2 {[%clk 0:00:03]} 59. Nf3 {[%clk 0:00:20]}  Kxg6 {[%clk 0:00:03]} 60. Nd4 {[%clk 0:00:20]}  Rc3 {[%clk 0:00:01]} 61. Nxf5 {[%clk 0:00:21]}  Kxf5 {[%clk 0:00:02]} 62. c8=Q+ {[%clk 0:00:21]}  Rxc8+ {[%clk 0:00:03]} 63. Kxc8 {[%clk 0:00:22]}  g5 {[%clk 0:00:03]} 64. Kb7 {[%clk 0:00:22]}  g4 {[%clk 0:00:03]} 65. Kxa6 {[%clk 0:00:22]}  Ke4 {[%clk 0:00:04]} 66. b5 {[%clk 0:00:22]}  Kd5 {[%clk 0:00:05]} 67. Bg3 {[%clk 0:00:22]}  Ke6 {[%clk 0:00:05]} 68. b6 {[%clk 0:00:23]}  Kd7 {[%clk 0:00:06]} 69. b7 {[%clk 0:00:23]}  Kc6 {[%clk 0:00:06]} 70. b8=Q {[%clk 0:00:23]} 1-0


[Site "https://www.chess.com"]

[Event "Titled Tuesday Blitz February 28 Early 2023"]
[White "Cheng, Xiao"]
[Black "Belozerov, Andrei"]
[WhiteFideId "2022915"]
[BlackFideId "4120213"]
[WhiteElo "2489"]
[BlackElo "2360"]
[Result "1/2-1/2"]
[Round "11"]
[TimeControl "180+2"]
[Date "2023.02.28"]
[WhiteClock "0:00:51"]
[BlackClock "0:00:10"]

1. e4 {[%clk 0:02:54]}  c5 {[%clk 0:02:59]} 2. Nf3 {[%clk 0:02:53]}  Nc6 {[%clk 0:02:59]} 3. d4 {[%clk 0:02:54]}  cxd4 {[%clk 0:02:59]} 4. Nxd4 {[%clk 0:02:55]}  g6 {[%clk 0:02:59]} 5. c4 {[%clk 0:02:49]}  Bg7 {[%clk 0:02:58]} 6. Nc2 {[%clk 0:02:49]}  Nf6 {[%clk 0:02:57]} 7. Nc3 {[%clk 0:02:49]}  d6 {[%clk 0:02:58]} 8. Be2 {[%clk 0:02:48]}  Nd7 {[%clk 0:02:58]} 9. O-O {[%clk 0:02:48]}  Nc5 {[%clk 0:02:58]} 10. f3 {[%clk 0:02:46]}  O-O {[%clk 0:02:53]} 11. Kh1 {[%clk 0:02:46]}  f5 {[%clk 0:02:52]} 12. exf5 {[%clk 0:02:45]}  Bxf5 {[%clk 0:02:52]} 13. Ne3 {[%clk 0:02:45]}  Qd7 {[%clk 0:02:48]} 14. Ncd5 {[%clk 0:02:38]}  e6 {[%clk 0:02:28]} 15. Nxf5 {[%clk 0:02:37]}  gxf5 {[%clk 0:02:25]} 16. Ne3 {[%clk 0:02:35]}  Kh8 {[%clk 0:02:16]} 17. Rb1 {[%clk 0:02:34]}  a5 {[%clk 0:02:11]} 18. b3 {[%clk 0:02:34]}  Rg8 {[%clk 0:02:10]} 19. a3 {[%clk 0:02:33]}  Bd4 {[%clk 0:01:56]} 20. f4 {[%clk 0:02:29]}  Ne4 {[%clk 0:01:50]} 21. Bf3 {[%clk 0:02:27]}  Qg7 {[%clk 0:01:41]} 22. Qe2 {[%clk 0:02:15]}  Nc3 {[%clk 0:01:39]} 23. Qc2 {[%clk 0:02:11]}  Nxb1 {[%clk 0:01:37]} 24. Qxb1 {[%clk 0:02:12]}  Ne7 {[%clk 0:01:24]} 25. Bxb7 {[%clk 0:02:09]}  Rab8 {[%clk 0:01:23]} 26. Bf3 {[%clk 0:02:10]}  Ng6 {[%clk 0:01:23]} 27. Nc2 {[%clk 0:02:06]}  Bf6 {[%clk 0:01:18]} 28. b4 {[%clk 0:02:04]}  Nh4 {[%clk 0:01:16]} 29. Ne1 {[%clk 0:02:02]}  axb4 {[%clk 0:01:13]} 30. axb4 {[%clk 0:02:02]}  Nxf3 {[%clk 0:01:05]} 31. Rxf3 {[%clk 0:02:00]}  Rgc8 {[%clk 0:01:02]} 32. Qb3 {[%clk 0:01:58]}  Qc7 {[%clk 0:00:58]} 33. c5 {[%clk 0:01:52]}  dxc5 {[%clk 0:00:48]} 34. Qxe6 {[%clk 0:01:46]}  Rb6 {[%clk 0:00:47]} 35. Qxf5 {[%clk 0:01:42]}  cxb4 {[%clk 0:00:47]} 36. Be3 {[%clk 0:01:42]}  Rc6 {[%clk 0:00:31]} 37. Bd2 {[%clk 0:01:39]}  Qe7 {[%clk 0:00:27]} 38. Re3 {[%clk 0:01:35]}  Qd6 {[%clk 0:00:25]} 39. Rd3 {[%clk 0:01:33]}  Qe6 {[%clk 0:00:24]} 40. Qxe6 {[%clk 0:01:20]}  Rxe6 {[%clk 0:00:24]} 41. Bxb4 {[%clk 0:01:21]}  Rc1 {[%clk 0:00:24]} 42. h3 {[%clk 0:01:12]}  Rcxe1+ {[%clk 0:00:23]} 43. Bxe1 {[%clk 0:01:11]}  Rxe1+ {[%clk 0:00:24]} 44. Kh2 {[%clk 0:01:12]}  Kg7 {[%clk 0:00:23]} 45. Kg3 {[%clk 0:01:12]}  Re2 {[%clk 0:00:19]} 46. Kf3 {[%clk 0:01:11]}  Ra2 {[%clk 0:00:20]} 47. g4 {[%clk 0:01:10]}  Rh2 {[%clk 0:00:19]} 48. Kg3 {[%clk 0:01:10]}  Ra2 {[%clk 0:00:19]} 49. g5 {[%clk 0:01:10]}  Be7 {[%clk 0:00:17]} 50. h4 {[%clk 0:01:11]}  h5 {[%clk 0:00:17]} 51. Re3 {[%clk 0:01:08]}  Kf7 {[%clk 0:00:17]} 52. f5 {[%clk 0:01:07]}  Ra4 {[%clk 0:00:16]} 53. g6+ {[%clk 0:01:05]}  Kf6 {[%clk 0:00:16]} 54. Re6+ {[%clk 0:01:05]}  Kxf5 {[%clk 0:00:15]} 55. Rxe7 {[%clk 0:01:04]}  Rg4+ {[%clk 0:00:15]} 56. Kh3 {[%clk 0:01:01]}  Kxg6 {[%clk 0:00:15]} 57. Re5 {[%clk 0:00:59]}  Ra4 {[%clk 0:00:14]} 58. Rg5+ {[%clk 0:00:58]}  Kh6 {[%clk 0:00:14]} 59. Kg3 {[%clk 0:00:58]}  Ra3+ {[%clk 0:00:14]} 60. Kg2 {[%clk 0:00:58]}  Rb3 {[%clk 0:00:14]} 61. Rc5 {[%clk 0:00:55]}  Rb4 {[%clk 0:00:13]} 62. Rc6+ {[%clk 0:00:55]}  Kg7 {[%clk 0:00:13]} 63. Kg3 {[%clk 0:00:52]}  Rg4+ {[%clk 0:00:12]} 64. Kh3 {[%clk 0:00:53]}  Rd4 {[%clk 0:00:12]} 65. Rc5 {[%clk 0:00:52]}  Kg6 {[%clk 0:00:12]} 66. Rg5+ {[%clk 0:00:52]}  Kh6 {[%clk 0:00:12]} 67. Rg3 {[%clk 0:00:52]}  Ra4 {[%clk 0:00:11]} 68. Rb3 {[%clk 0:00:52]}  Kg6 {[%clk 0:00:10]} 69. Rc3 {[%clk 0:00:51]} 1/2-1/2


[Site "https://www.chess.com"]